bitfinex/quotes_ETHUSD_20250628
["timestamp","ask_amount","ask_price","bid_price","bid_amount"]
[1751150897061,0.2048,2441.3,2441.2,2.45780763]
[1751150897353,0.204,2441.5,2441.4,2.45759492]
[1751150897560,0.204,2441.5,2441.3,2.45765874]
[1751150898130,0.204,2441.5,2441.4,2.45760629]
[1751150899665,0.204,2441.5,2441.3,2.45765688]
[1751150900338,0.22213557,2441.6,2441.5,2.45750563]
[1751150904231,0.22213557,2441.6,2441.5,4.29089682]
[1751150904456,0.22213557,2441.6,2441.5,4.49489682]
[1751150917664,0.22213557,2441.6,2441.5,9.25150563]
[1751150918059,0.22213557,2441.6,2441.5,9.04750563]
[1751150918761,0.22213557,2441.6,2441.4,2.45758197]
[1751150919377,0.7822,2441.5,2441.2,2.66258682]
[1751150919579,0.9862,2441.5,2441.2,9.04978682]
[1751150920161,0.9862,2441.5,2441.3,2.45767569]
[1751150920354,0.9862,2441.5,2441.2,9.04976145]
[1751150920987,0.9862,2441.5,2441.3,2.45770055]
[1751150921193,0.9862,2441.5,2441.2,6.592]
[1751150921194,0.9862,2441.5,2441.2,9.04975203]
[1751150921501,0.9862,2441.5,2441.2,2.45780739]
[1751150923491,0.9862,2441.5,2441.3,2.4576617]
[1751150923789,0.9862,2441.5,2441.4,2.45760629]
[1751150924279,0.204,2441.5,2441.4,2.45760629]
[1751150924597,0.22213557,2441.6,2441.5,2.45750563]
[1751150925994,0.22213557,2441.6,2441.4,2.45755824]
[1751150926895,0.22213557,2441.6,2441.5,2.45750563]
[1751150931128,1.03433557,2441.6,2441.3,2.6624731]
[1751150931317,0.8122,2441.3,2441.1,2.45784302]
[1751150931894,0.8122,2441.3,2441.0,2.72560372]
[1751150932780,0.8122,2441.3,2441.1,2.45789901]
[1751150936024,0.2048,2441.4,2441.3,2.45770695]
[1751150936829,0.2048,2441.4,2441.0,9.31960121]
[1751150937030,0.2048,2441.4,2441.0,0.26764077]
[1751150937797,0.2048,2441.4,2441.1,2.45790439]
[1751150938215,0.2048,2441.4,2441.2,2.45779261]
[1751150938913,0.2048,2441.4,2441.1,2.45786363]
[1751150940929,0.2048,2441.4,2441.0,0.26764077]
[1751150941095,0.7565,2441.3,2441.0,2.72560769]
[1751150941427,0.2048,2441.2,2441.0,2.72560769]
[1751150942137,0.2048,2441.2,2441.0,0.26764077]
[1751150943146,0.2048,2441.2,2441.0,2.72563973]
[1751150943298,0.2048,2441.2,2441.0,0.26764077]
[1751150945302,0.2048,2441.2,2441.0,2.72562268]
[1751150945633,0.2048,2441.2,2441.1,2.45790832]
[1751150947549,0.2048,2441.2,2441.0,2.72560732]
[1751150947725,0.9684,2441.2,2441.0,0.26764077]
[1751150947932,0.9684,2441.2,2441.0,2.72563283]
[1751150949843,0.9684,2441.2,2441.0,0.26764077]
[1751150950446,3.22145791,2441.2,2441.0,0.26764077]
[1751150950835,2.45790832,2441.1,2441.0,0.26764077]
[1751150951415,3.27130832,2441.1,2441.0,0.26764077]
[1751150951846,13.27130832,2441.1,2441.0,0.26764077]
[1751150954849,21.32322805,2441.1,2441.0,0.26764077]
[1751150955047,21.32322805,2441.1,2440.4,0.002]
[1751150955048,0.2048,2441.0,2440.4,0.002]
[1751150955248,0.2048,2440.5,2440.4,0.002]
[1751150967434,2.66331259,2440.5,2440.4,0.002]
[1751150968663,0.2048,2440.5,2440.4,0.002]
[1751150972962,12.66331259,2440.5,2440.4,0.002]
[1751150973164,13.48011259,2440.5,2440.4,0.002]
[1751150975243,20.07611259,2440.5,2440.4,0.002]
[1751150977441,28.33121848,2440.5,2440.4,0.002]
[1751150986306,21.75611259,2440.5,2440.4,0.002]
[1751150990102,13.48011259,2440.5,2440.4,0.002]
[1751150990398,21.75811259,2440.5,2440.4,0.002]
[1751150990599,11.8858,2440.5,2440.4,0.002]
[1751150990802,18.4818,2440.5,2440.4,0.002]
[1751150991190,11.8858,2440.5,2440.4,0.002]
[1751150991398,18.4818,2440.5,2440.4,0.002]
[1751150991702,11.8858,2440.5,2440.4,0.002]
[1751150991873,18.4828,2440.5,2440.4,0.002]
[1751150995505,12.66331259,2440.5,2440.4,0.002]
[1751150995693,20.94031259,2440.5,2440.4,0.002]
[1751151003421,18.4818,2440.5,2440.4,0.002]
[1751151003713,21.31759632,2440.5,2440.4,0.002]
[1751151003920,20.94031259,2440.5,2440.4,0.002]
[1751151005317,12.66331259,2440.5,2440.4,0.002]
[1751151005518,10.2048,2440.5,2440.4,0.7753]
[1751151005718,10.2048,2440.5,2440.4,0.002]
[1751151007719,0.2048,2440.5,2440.4,0.002]
[1751151013734,0.2048,2440.5,2440.4,2.46061334]
[1751151015059,16.595,2440.6,2440.5,2.45851259]
[1751151015250,16.7998,2440.6,2440.5,2.45851259]
[1751151015542,16.7998,2440.6,2440.4,3.26937184]
[1751151017013,16.7998,2440.6,2440.4,0.8108]
[1751151017243,10.2048,2440.6,2440.4,0.8108]
[1751151019363,10.2048,2440.6,2440.4,3.26941067]
[1751151019565,10.2048,2440.6,2440.4,0.8108]
[1751151023847,10.2048,2440.6,2440.4,3.26940051]
[1751151024755,10.0,2440.6,2440.5,2.45851259]
[1751151028390,10.0,2440.6,2440.4,3.26937087]
[1751151033387,10.0,2440.6,2440.4,0.002]
[1751151033691,10.2048,2440.6,2440.4,0.002]
[1751151037500,16.7988,2440.6,2440.4,0.002]
[1751151039890,16.7988,2440.6,2440.4,2.46061076]
[1751151041199,10.2048,2440.6,2440.5,2.45851259]
[1751151041360,10.0,2440.6,2440.5,3.26641259]
[1751151042975,0.2048,2440.8,2440.7,2.45831114]
[1751151043188,0.2048,2441.0,2440.8,3.26611009]
[1751151043375,10.2048,2441.0,2440.8,0.8079]
[1751151043888,10.2048,2441.0,2440.6,3.25587341]
[1751151045205,10.2048,2441.0,2440.7,2.4582989]
[1751151049706,0.2048,2441.0,2440.7,2.4582989]
[1751151052629,0.2048,2441.0,2440.8,2.45816572]
[1751151052917,0.2048,2441.0,2440.9,2.45810971]
[1751151053490,0.2048,2441.0,2440.8,2.45815943]
[1751151053690,0.2048,2441.0,2440.9,2.45810971]
[1751151055140,6.593,2441.2,2440.9,3.21880971]
[1751151055427,6.7978,2441.2,2440.9,3.21880971]
[1751151055622,6.7978,2441.2,2441.0,2.45799155]
[1751151055990,6.7978,2441.2,2440.9,3.2187514]
[1751151056191,0.2048,2441.2,2441.0,2.45800216]
[1751151057130,0.2048,2441.2,2440.9,3.2187589]
[1751151058597,0.2048,2441.2,2441.0,2.45800434]
[1751151061156,0.2048,2441.2,2441.1,2.45790832]
[1751151061517,1.68,2441.4,2441.1,2.45790832]
[1751151061518,7.0181814,2441.6,2441.3,2.45760796]
[1751151062249,7.0181814,2441.6,2441.2,2.45780763]
[1751151062250,7.0181814,2441.6,2441.2,2.45775626]
[1751151063127,6.8141814,2441.6,2441.2,2.45775626]
[1751151063329,0.2048,2441.4,2441.0,2.66276061]
[1751151063535,3.21789881,2441.5,2441.0,2.4580037]
[1751151063850,0.2048,2441.3,2441.0,2.4580037]
[1751151064860,0.2048,2441.3,2441.1,2.45789764]
[1751151066129,0.2048,2441.3,2441.2,2.45780763]
[1751151067060,0.2048,2441.3,2441.1,2.45785666]
[1751151069658,0.2048,2441.3,2441.2,2.45780763]
[1751151071431,0.2048,2441.3,2441.1,2.45785038]
[1751151075872,0.2048,2441.3,2441.2,2.45780763]
[1751151077060,0.2048,2441.3,2440.6,1.68]
[1751151077061,10.832,2441.2,2440.6,1.68]
[1751151077266,0.2048,2440.8,2440.7,2.45830219]
[1751151081181,0.767,2441.3,2440.9,2.45802508]
[1751151081376,10.2048,2441.0,2440.9,2.45802508]
[1751151081590,0.2048,2441.0,2440.9,2.45802508]
[1751151084269,10.0,2441.2,2441.1,2.45790832]
[1751151084469,0.2048,2441.2,2441.1,2.45790832]
[1751151084691,6.7968,2441.4,2441.2,2.457748]
[1751151091208,0.2048,2441.4,2441.3,2.45770695]
[1751151091585,0.2211814,2441.6,2441.4,2.45753701]
[1751151091914,0.204,2441.5,2441.4,2.45753701]
[1751151092073,0.204,2441.5,2441.2,2.45778053]
[1751151092279,0.204,2441.5,2441.4,2.45760629]
[1751151094683,0.204,2441.5,2441.3,2.4576543]
[1751151097513,0.204,2441.5,2441.4,2.45760629]
[1751151102922,0.2211814,2441.6,2441.5,2.45750563]
[1751151119445,0.2211814,2441.6,2441.3,2.45768171]
[1751151119636,0.2211814,2441.6,2441.5,2.45750563]
[1751151121750,0.2211814,2441.6,2441.5,3.22850563]
[1751151122332,0.2211814,2441.6,2441.5,3.79711613]
[1751151126758,0.2211814,2441.6,2441.5,2.45750563]
[1751151135087,0.2211814,2441.6,2441.5,3.28600563]
[1751151146792,0.2211814,2441.6,2441.5,3.83600563]
[1751151153699,0.2211814,2441.6,2441.5,3.28600563]
[1751151153887,0.2211814,2441.6,2441.5,2.45750563]
[1751151155298,10.0,2441.5,2441.0,2.45796094]
[1751151155473,0.7533,2441.4,2440.9,2.45804453]
[1751151155669,0.7533,2441.4,2441.0,2.45797984]
[1751151156616,0.7533,2441.4,2440.6,6.599]
[1751151156772,0.7533,2441.4,2441.2,2.45775888]
[1751151157398,0.7533,2441.4,2441.1,2.45785912]
[1751151157598,0.7533,2441.4,2441.0,2.45793691]
[1751151158102,0.7533,2441.4,2441.1,2.45789919]
[1751151159075,0.7533,2441.4,2440.9,2.45805695]
[1751151160405,0.7533,2441.4,2441.0,2.45798551]
[1751151160606,3.21091991,2441.4,2440.9,2.45806874]
[1751151160982,2.45761991,2441.4,2440.9,2.45806874]
[1751151161188,0.7533,2441.3,2440.9,2.45806874]
[1751151162312,0.7533,2441.3,2441.0,2.45800286]
[1751151162810,0.7533,2441.3,2440.6,9.05837397]
[1751151163109,0.7533,2441.3,2441.1,2.45788907]
[1751151163409,0.7533,2441.3,2440.8,0.8315]
[1751151163410,0.7533,2441.3,2441.2,2.45780763]
[1751151164219,10.7629,2441.5,2441.3,2.45769139]
[1751151164390,0.7629,2441.5,2440.9,2.45810971]
[1751151164713,0.7629,2441.5,2441.3,2.45766765]
[1751151165286,0.9669,2441.5,2441.4,2.45760629]
[1751151165586,0.9669,2441.5,2441.3,2.45766863]
[1751151165790,0.9669,2441.5,2441.4,2.45760629]
[1751151166714,0.204,2441.5,2441.4,2.45760629]
[1751151168997,0.204,2441.5,2441.3,2.45766178]
[1751151170840,0.001,2442.1,2442.0,2.45700245]
[1751151170996,0.001,2442.1,2442.0,2.7027027]
[1751151171196,0.001,2442.1,2442.0,2.45700245]
[1751151177431,0.001,2442.1,2441.8,2.45710894]
[1751151177637,0.8201,2442.1,2441.5,2.4484]
[1751151177843,0.8201,2442.1,2441.9,2.45709999]
[1751151180350,0.001,2442.1,2442.0,2.45700245]
[1751151183467,0.001,2442.1,2441.9,2.45704745]
[1751151184987,0.001,2442.1,2441.8,2.45718846]
[1751151193081,0.001,2442.1,2441.7,2.6612508]
[1751151193082,0.8026,2442.0,2441.7,2.6612508]
[1751151193285,0.8026,2442.0,2441.8,2.45719365]
[1751151194261,0.8026,2442.0,2441.7,0.204]
[1751151194467,0.8026,2442.0,2441.4,2.45752672]
[1751151194468,2.45715932,2441.9,2441.4,2.45752672]
[1751151194662,0.7782,2441.7,2441.5,2.45750129]
[1751151194867,0.204,2441.8,2441.6,2.45740498]
[1751151195261,0.204,2441.8,2441.5,2.4574688]
[1751151195474,0.204,2441.8,2441.4,2.66155009]
[1751151197381,2.66123464,2441.8,2441.4,0.204]
[1751151198086,12.45723464,2441.8,2441.3,2.45766057]
[1751151198286,0.204,2441.7,2441.3,2.45766057]
[1751151198786,0.204,2441.7,2441.4,2.45760454]
[1751151199086,2.66132256,2441.7,2441.2,2.66257079]
[1751151199253,3.22761302,2441.6,2441.1,4.15285621]
[1751151199456,0.2048,2441.4,2441.1,4.15285621]
[1751151200614,0.7702,2441.1,2440.6,0.002]
[1751151200892,2.45800983,2441.0,2440.6,0.002]
[1751151202191,2.4722,2441.1,2440.6,2.46040807]
[1751151202356,2.4722,2441.1,2440.6,2.46035823]
[1751151202563,4.93012753,2441.1,2440.6,2.46035823]
[1751151203401,0.7702,2441.1,2440.7,2.45830935]
[1751151205803,3.22810933,2441.1,2440.6,2.46036883]
[1751151206160,2.45801044,2441.0,2440.6,2.46036883]
[1751151206360,3.22815638,2441.1,2440.6,2.46036883]
[1751151209067,0.7702,2441.1,2440.7,2.45829993]
[1751151209491,3.22811189,2441.1,2440.7,2.45829993]
[1751151209717,3.22811189,2441.1,2440.6,2.46035671]
[1751151210021,3.22811189,2441.1,2440.7,2.45830948]
[1751151210687,0.2048,2441.0,2440.7,2.45830948]
[1751151211223,0.2048,2441.0,2440.6,2.46038506]
[1751151211224,0.2048,2441.0,2440.8,2.45820776]
[1751151211751,0.2048,2441.0,2440.7,2.45825265]
[1751151213031,0.2048,2441.0,2440.8,2.45816464]
[1751151213520,0.2048,2441.0,2440.7,2.45826832]
[1751151214835,0.2048,2441.0,2440.8,2.45820169]
[1751151215129,0.2048,2441.0,2440.7,2.45825705]
[1751151216038,0.2048,2441.0,2440.8,2.45819689]
[1751151217698,0.2048,2441.0,2440.9,2.45810971]
[1751151218202,1.703,2441.1,2441.0,2.45799283]
[1751151219132,0.2048,2441.2,2441.0,2.45799283]
[1751151219309,1.703,2441.1,2441.0,2.45799283]
[1751151219517,1.703,2441.1,2440.9,2.45806305]
[1751151220137,1.703,2441.1,2441.0,2.45800901]
[1751151220304,0.2048,2441.2,2441.0,2.45800901]
[1751151220500,1.9078,2441.2,2441.0,2.45800901]
[1751151221737,10.7607,2441.4,2440.7,0.8086]
[1751151221936,1.703,2441.3,2441.1,2.45789432]
[1751151222140,1.703,2441.3,2441.0,2.45794435]
[1751151224956,1.703,2441.3,2440.9,2.66285263]
[1751151225628,1.703,2441.3,2441.0,2.45800282]
[1751151226759,1.703,2441.3,2440.9,2.66285754]
[1751151227058,4.16076297,2441.3,2440.7,3.26690327]
[1751151227244,0.2048,2441.2,2440.9,2.45810686]
[1751151228974,13.26882639,2441.1,2440.7,0.2048]
[1751151229267,10.8109,2441.1,2440.7,2.66310159]
[1751151229653,13.26881081,2441.1,2440.6,2.46035262]
[1751151229849,10.2048,2441.0,2440.6,2.46035262]
[1751151232477,2.66282953,2441.0,2440.6,0.002]
[1751151232839,2.66282953,2441.0,2440.6,2.46041139]
[1751151232840,12.66282953,2441.0,2440.6,2.46041139]
[1751151233356,10.2048,2441.0,2440.6,2.46041139]
[1751151233760,12.66281637,2441.0,2440.6,2.46041139]
[1751151234168,10.2048,2441.0,2440.6,2.46041139]
[1751151234880,10.58208373,2441.0,2440.6,2.46041139]
[1751151235082,10.2048,2441.0,2440.6,2.46041139]
[1751151235382,3.25396718,2440.9,2440.6,0.002]
[1751151235589,0.2048,2440.7,2440.6,0.002]
[1751151239901,2.66311114,2440.7,2440.6,0.002]
[1751151240055,0.9834,2440.7,2440.6,0.002]
[1751151240262,13.44171114,2440.7,2440.6,0.002]
[1751151242493,21.75971114,2440.7,2440.6,0.002]
[1751151243566,13.44171114,2440.7,2440.6,0.002]
[1751151243789,10.9834,2440.7,2440.6,0.002]
[1751151244086,19.3034,2440.7,2440.6,0.002]
[1751151244300,18.5248,2440.7,2440.6,0.002]
[1751151244887,18.5238,2440.7,2440.6,0.002]
[1751151245722,11.9008,2440.7,2440.6,0.002]
[1751151245881,10.2048,2440.7,2440.6,0.002]
[1751151246208,8.321,2440.8,2440.6,2.46041186]
[1751151246573,11.54575509,2440.8,2440.6,0.002]
[1751151246773,0.2048,2440.7,2440.6,0.002]
[1751151248316,8.5288,2440.7,2440.6,0.002]
[1751151250001,8.5278,2440.7,2440.6,0.002]
[1751151252212,10.98611114,2440.7,2440.6,0.002]
[1751151252987,21.81291114,2440.7,2440.6,0.002]
[1751151262696,29.86608403,2440.7,2440.6,0.002]
[1751151265725,21.54308403,2440.7,2440.6,0.002]
[1751151266023,29.86608403,2440.7,2440.6,0.002]
[1751151270226,29.86308403,2440.7,2440.6,0.002]
[1751151272329,10.2048,2440.7,2440.6,0.002]
[1751151272627,20.98111114,2440.7,2440.6,0.002]
[1751151276339,12.66311114,2440.7,2440.6,0.002]
[1751151276541,20.98111114,2440.7,2440.6,0.002]
[1751151278541,14.36111114,2440.7,2440.6,0.002]
[1751151278740,20.98011114,2440.7,2440.6,0.002]
[1751151284949,18.5218,2440.7,2440.6,0.002]
[1751151285555,20.98011114,2440.7,2440.6,0.002]
[1751151286153,10.2048,2440.7,2440.6,0.002]
[1751151286353,10.2048,2440.7,2440.6,3.27171186]
[1751151286653,10.0,2440.7,2440.6,3.61956305]
[1751151287156,1.697,2440.8,2440.7,2.45831114]
[1751151288173,0.2048,2441.0,2440.8,2.45818572]
[1751151288335,0.2048,2441.0,2440.9,2.45810971]
[1751151288520,6.617,2441.2,2441.0,2.45791193]
[1751151290133,10.0,2441.2,2441.0,2.45791193]
[1751151292665,0.2048,2441.3,2441.0,2.45791193]
[1751151292867,10.0,2441.2,2441.0,2.45791193]
[1751151294689,0.2048,2441.3,2441.0,2.45791193]
[1751151294966,10.0,2441.2,2441.1,2.45790832]
[1751151296039,10.0,2441.2,2441.0,2.45796483]
[1751151297077,0.2048,2441.3,2441.0,2.45796483]
[1751151297286,10.0,2441.2,2441.0,2.45796483]
[1751151298686,0.2048,2441.3,2441.1,2.45790832]
[1751151298987,6.8168,2441.3,2441.1,2.45790832]
[1751151299183,6.8168,2441.3,2441.1,2.45784509]
[1751151299601,0.2048,2441.3,2441.1,2.45784509]
[1751151300167,0.2048,2441.3,2441.2,2.45780763]
[1751151300366,10.0,2441.5,2441.3,2.45767988]
[1751151300367,8.507,2441.5,2441.3,2.45767988]
[1751151301905,8.507,2441.5,2441.2,0.8104]
[1751151302699,8.507,2441.5,2441.2,3.26820112]
[1751151308414,8.507,2441.5,2441.3,2.45770469]
[1751151308808,8.507,2441.5,2441.2,0.8104]
[1751151309014,10.0,2441.4,2441.2,0.8104]
[1751151309215,10.0,2441.4,2441.2,3.26819782]
[1751151310114,10.0,2441.4,2441.2,0.8104]
[1751151310316,10.0,2441.4,2441.2,3.26819705]
[1751151311494,10.0,2441.4,2441.2,0.8104]
[1751151312026,10.0,2441.4,2441.2,3.2681939]
[1751151312523,0.204,2441.5,2441.3,2.45764709]
[1751151312725,0.204,2441.8,2441.5,2.45742139]
[1751151313021,0.204,2441.8,2441.4,3.22350398]
[1751151313224,10.204,2441.8,2441.4,3.22350398]
[1751151313997,12.66121718,2441.8,2441.4,3.22350398]
[1751151314647,10.204,2441.8,2441.4,3.22350398]
[1751151314850,12.66121527,2441.8,2441.4,3.22350398]
[1751151316343,10.204,2441.8,2441.4,3.22350398]
[1751151316743,12.66120436,2441.8,2441.4,0.7659]
[1751151317115,12.66120436,2441.8,2441.4,1.41382119]
[1751151317116,0.204,2441.8,2441.4,1.41382119]
[1751151317324,1.692,2441.9,2441.6,2.45732771]
[1751151317537,1.692,2441.9,2441.6,2.66132771]
[1751151317715,8.501,2442.0,2441.7,3.22319605]
[1751151317912,8.501,2442.0,2441.7,0.7659]
[1751151319527,0.204,2442.0,2441.7,3.22320344]
[1751151319720,8.501,2442.0,2441.7,0.7659]
[1751151320822,0.204,2442.0,2441.7,0.7659]
[1751151321033,8.5,2442.0,2441.7,0.7659]
[1751151322358,20.95700593,2442.0,2441.7,0.7659]
[1751151322658,10.0,2441.9,2441.7,0.7659]
[1751151323325,10.0,2441.9,2441.7,3.22319979]
[1751151325867,0.204,2442.0,2441.7,3.22319979]
[1751151326035,10.0,2441.9,2441.7,3.22319979]
[1751151326433,6.806,2442.0,2441.7,3.22319979]
[1751151326956,6.806,2442.0,2441.7,0.7659]
[1751151330370,16.804,2442.0,2441.7,0.7659]
[1751151330549,10.204,2442.0,2441.7,0.7659]
[1751151330768,16.804,2442.0,2441.7,0.7659]
[1751151330962,0.204,2442.0,2441.7,3.22318839]
[1751151331149,6.804,2442.0,2441.7,3.56587586]
[1751151331332,6.804,2442.0,2441.7,3.22315702]
[1751151332028,1.687,2442.1,2441.7,0.7659]
[1751151332265,8.287,2442.1,2441.8,2.66113718]
[1751151332432,10.74397732,2442.1,2441.8,0.204]
[1751151332635,16.37955335,2442.1,2441.7,0.7659]
[1751151332943,16.58355335,2442.1,2441.7,0.9699]
[1751151334062,14.12656904,2442.1,2441.7,3.42715751]
[1751151336467,8.491,2442.1,2441.8,2.45719271]
[1751151344143,10.94791022,2442.1,2441.7,3.4271571]
[1751151344393,8.491,2442.1,2441.7,3.4271571]
[1751151345888,10.205,2442.1,2441.7,3.4271571]
[1751151346095,11.891,2442.1,2441.7,3.4271571]
[1751151348391,11.891,2442.1,2441.8,2.45719672]
[1751151348887,11.891,2442.1,2441.7,3.42715895]
[1751151349785,14.34790861,2442.1,2441.7,3.42715895]
[1751151350287,2.45704667,2442.0,2441.7,0.204]
[1751151350486,3.20944667,2442.0,2441.7,0.204]
[1751151351660,3.20945292,2442.0,2441.5,3.26205512]
[1751151351859,0.204,2441.9,2441.5,3.26205512]
[1751151352055,0.204,2441.9,2441.6,2.45735747]
[1751151352491,0.204,2441.9,2441.5,3.2620514]
[1751151354797,0.204,2441.9,2441.7,2.45729588]
[1751151355105,8.283,2442.0,2441.7,2.45722295]
[1751151356290,8.283,2442.0,2441.6,0.204]
[1751151356494,8.283,2442.0,2441.6,2.66135455]
[1751151358597,8.283,2442.0,2441.6,2.66131761]
[1751151358770,8.283,2442.0,2441.7,2.45729193]
[1751151359991,8.283,2442.0,2441.6,2.66136313]
[1751151360318,10.74000834,2442.0,2441.6,2.66136313]
[1751151360524,8.283,2442.0,2441.6,2.66136313]
[1751151361725,8.283,2442.0,2441.7,2.45730108]
[1751151363213,8.283,2442.0,2441.6,2.6613493]
[1751151364735,8.283,2442.0,2441.7,2.45729019]
[1751151366803,8.283,2442.0,2441.6,2.66136913]
[1751151370643,8.283,2442.0,2441.6,2.66135828]
[1751151370937,8.283,2442.0,2441.6,0.204]
[1751151371707,8.283,2442.0,2441.7,2.45730169]
[1751151372560,8.283,2442.0,2441.8,2.45717964]
[1751151372845,18.488,2442.1,2441.8,2.4572037]
[1751151373730,18.488,2442.1,2441.7,3.21876506]
[1751151374854,18.488,2442.1,2441.8,2.45715814]
[1751151380633,18.488,2442.1,2441.7,3.21874576]
[1751151381864,18.488,2442.1,2441.7,2.45724576]
[1751151384380,18.488,2442.1,2441.8,2.45720235]
[1751151385743,18.488,2442.1,2441.8,2.45710678]
[1751151386167,16.804,2442.1,2441.8,2.45710678]
[1751151391716,16.804,2442.1,2441.9,2.45709643]
[1751151394493,16.804,2442.1,2441.8,2.45714441]
[1751151405174,16.804,2442.1,2441.7,2.45728115]
[1751151407107,2.45700245,2442.0,2441.6,0.204]
[1751151407306,22.43956904,2442.1,2441.3,2.66245926]
[1751151407307,0.204,2441.7,2441.3,2.66245926]
[1751151407513,0.7536,2441.6,2441.3,2.66245926]
[1751151407814,0.7536,2441.6,2441.4,2.45760187]
[1751151411826,0.204,2441.7,2441.5,2.45750563]
[1751151417059,0.204,2441.7,2441.4,3.23625403]
[1751151418448,0.968,2441.7,2441.3,0.2048]
[1751151418655,0.968,2441.7,2441.4,2.45756232]
[1751151419960,0.968,2441.7,2441.5,2.45748665]
[1751151420452,0.001,2442.1,2441.9,2.45704125]
[1751151420651,10.001,2442.1,2441.9,2.45704125]
[1751151421121,10.001,2442.1,2441.8,2.45715148]
[1751151423836,10.001,2442.1,2441.9,2.45710295]
[1751151424585,10.001,2442.1,2441.8,2.45714873]
[1751151427738,10.001,2442.1,2441.9,2.45709794]
[1751151428246,10.001,2442.1,2441.8,2.4571145]
[1751151428451,0.001,2442.1,2441.8,2.4571145]
[1751151431878,0.8167,2442.0,2441.6,2.66133126]
[1751151432173,10.0,2441.9,2441.2,0.8173]
[1751151432381,9.11351624,2441.8,2441.4,0.204]
[1751151432544,2.45730955,2441.7,2441.4,0.204]
[1751151434782,2.45738261,2441.7,2441.4,0.204]
[1751151435074,0.204,2441.5,2441.1,2.66263589]
[1751151435281,1.0188,2441.5,2441.1,3.2564285]
[1751151435775,1.0188,2441.5,2441.1,0.79859261]
[1751151435943,1.0188,2441.5,2441.1,0.2048]
[1751151436874,3.47632012,2441.5,2441.1,2.6627037]
[1751151438043,3.47632012,2441.5,2441.1,0.2048]
[1751151438979,1.0188,2441.5,2441.1,2.66266325]
[1751151439169,1.0188,2441.5,2441.2,2.4578055]
[1751151439369,1.0188,2441.5,2441.1,2.66266235]
[1751151445184,1.0188,2441.5,2441.2,2.45779421]
[1751151445681,1.0188,2441.5,2441.1,2.66265921]
[1751151445908,1.0188,2441.5,2441.1,3.17472165]
[1751151447406,1.0188,2441.5,2441.2,2.45780013]
[1751151447569,1.0188,2441.5,2441.1,3.17472896]
[1751151448277,1.0188,2441.5,2441.2,2.45780445]
[1751151450412,0.204,2441.5,2441.2,2.45779061]
[1751151450615,0.204,2441.5,2441.3,2.45765934]
[1751151457239,0.204,2441.5,2441.4,2.45760629]
[1751151457420,0.204,2441.8,2441.6,2.45739772]
[1751151457822,10.0,2441.9,2441.6,2.45739772]
[1751151459657,10.0,2441.9,2441.7,2.45729591]
[1751151459943,0.204,2442.0,2441.7,2.45729591]
[1751151465349,0.204,2442.0,2441.6,2.45732372]
[1751151467633,0.204,2442.0,2441.7,2.45730392]
[1751151471459,11.684,2442.1,2441.8,2.45715987]
[1751151471643,11.888,2442.1,2441.8,2.45715987]
[1751151472759,10.205,2442.1,2441.8,2.45715987]
[1751151474666,10.205,2442.1,2441.7,3.79333107]
[1751151479476,12.66193046,2442.1,2441.7,2.45725148]
[1751151481277,12.66193046,2442.1,2441.6,2.66135575]
[1751151484475,12.66193046,2442.1,2441.7,2.45728945]
[1751151485887,12.66193046,2442.1,2441.6,2.66135002]
[1751151486064,6.38773937,2442.0,2441.3,0.7608]
[1751151486248,2.45714614,2441.9,2441.5,0.204]
[1751151487679,9.04875776,2442.0,2441.5,0.204]
[1751151487984,9.04875776,2442.0,2441.5,2.6614346]
[1751151489783,2.4571035,2441.9,2441.5,2.6614346]
[1751151491191,9.04879385,2442.0,2441.5,2.6614346]
[1751151491379,9.04879385,2442.0,2441.6,2.4574044]
[1751151491779,9.04879385,2442.0,2441.5,0.204]
[1751151491780,9.04879385,2442.0,2441.5,2.66145075]
[1751151495791,0.9553,2442.0,2441.6,2.45739191]
[1751151499268,3.41231838,2442.0,2441.5,3.42735823]
[1751151499890,2.4571056,2441.9,2441.5,3.42735823]
[1751151500198,0.9553,2442.0,2441.5,0.9699]
[1751151500495,3.41654658,2441.7,2441.3,0.2048]
[1751151500696,2.45741669,2441.6,2441.3,0.2048]
[1751151504608,2.45741236,2441.6,2441.3,0.2048]
[1751151506784,5.09856026,2441.7,2441.3,0.2048]
[1751151507191,2.45741286,2441.6,2441.3,0.2048]
[1751151510113,5.09856346,2441.7,2441.3,0.2048]
[1751151514012,5.09856346,2441.7,2441.3,2.66250462]
[1751151514314,2.6412,2441.7,2441.3,2.66250462]
[1751151514510,5.0985198,2441.7,2441.3,2.66250462]
[1751151516213,2.6412,2441.7,2441.3,0.2048]
[1751151516395,11.886,2441.7,2441.3,2.66245875]
[1751151517224,4.34330467,2441.7,2441.3,2.66245875]
[1751151519206,1.886,2441.7,2441.3,2.66245875]
[1751151520711,1.886,2441.7,2441.3,3.47525875]
[1751151520917,2.45704855,2442.0,2441.6,0.8128]
[1751151521218,1.885,2442.0,2441.6,3.27019373]
[1751151521603,10.0,2441.9,2441.6,3.27019373]
[1751151524210,10.0,2441.9,2441.6,0.8128]
[1751151524735,2.45711083,2441.9,2441.6,0.8128]
[1751151525219,10.0,2441.9,2441.6,0.8128]
[1751151526190,2.45711033,2441.9,2441.6,0.8128]
[1751151529319,12.45711033,2441.9,2441.6,0.8128]
[1751151539910,10.0,2441.9,2441.6,0.8128]
[1751151540343,12.45710694,2441.9,2441.6,0.8128]
[1751151546065,10.0,2441.9,2441.6,0.8128]
[1751151546240,10.0,2441.9,2441.6,3.27019549]
[1751151546941,10.0,2441.9,2441.6,0.8128]
[1751151550350,12.45715007,2441.9,2441.6,0.8128]
[1751151551005,2.45720474,2441.8,2441.6,0.8128]
[1751151551444,2.4574465,2441.6,2441.3,0.9791]
[1751151551645,2.45760629,2441.4,2441.3,0.7743]
[1751151551845,2.66240629,2441.4,2441.0,0.9791]